bitfinex/quotes_BTCUSD_20250727
["timestamp","ask_amount","ask_price","bid_price","bid_amount"]
[1753600270700,1.2169171,118360.0,118350.0,0.121609]
[1753600270908,1.2414571,118360.0,118350.0,0.121609]
[1753600271834,1.25728717,118360.0,118350.0,0.121609]
[1753600272040,1.2414571,118360.0,118350.0,0.121609]
[1753600272259,1.2444871,118360.0,118350.0,0.121609]
[1753600272843,1.26031747,118360.0,118350.0,0.121609]
[1753600275938,1.2444871,118360.0,118350.0,0.121609]
[1753600276456,1.26031702,118360.0,118350.0,0.121609]
[1753600279248,1.260316,118360.0,118350.0,0.121609]
[1753600282095,1.26031547,118360.0,118350.0,0.121609]
[1753600288124,1.26031547,118360.0,118350.0,0.105409]
[1753600290800,1.26031578,118360.0,118350.0,0.105409]
[1753600293527,1.2444871,118360.0,118350.0,0.105409]
[1753600293722,1.26031578,118360.0,118350.0,0.105409]
[1753600296273,1.26031578,118360.0,118350.0,0.103269]
[1753600296477,1.2444871,118360.0,118350.0,0.103269]
[1753600296775,1.26031591,118360.0,118350.0,0.103269]
[1753600302499,1.26031606,118360.0,118350.0,0.103269]
[1753600303595,1.26031627,118360.0,118350.0,0.103269]
[1753600305325,1.26031683,118360.0,118350.0,0.103269]
[1753600313992,1.2444871,118360.0,118350.0,0.103269]
[1753600314195,1.26031629,118360.0,118350.0,0.103269]
[1753600316873,1.26031601,118360.0,118350.0,0.103269]
[1753600318162,1.260316,118360.0,118350.0,0.103269]
[1753600319881,1.26031447,118360.0,118350.0,0.103269]
[1753600321177,1.26031471,118360.0,118350.0,0.103269]
[1753600333174,1.2444871,118360.0,118350.0,0.103269]
[1753600334226,1.26031779,118360.0,118350.0,0.103269]
[1753600335414,1.2444871,118360.0,118350.0,0.103269]
[1753600335647,1.26031767,118360.0,118350.0,0.103269]
[1753600336502,1.2444871,118360.0,118350.0,0.103269]
[1753600338471,1.26031811,118360.0,118350.0,0.103269]
[1753600338722,1.2444871,118360.0,118350.0,0.103269]
[1753600338941,0.61373512,118360.0,118350.0,0.103269]
[1753600339156,1.2444871,118360.0,118350.0,0.103269]
[1753600339648,1.26031813,118360.0,118350.0,0.103269]
[1753600342682,1.26031813,118360.0,118350.0,0.078549]
[1753600342835,1.27571813,118360.0,118350.0,0.078549]
[1753600344788,1.27571813,118360.0,118350.0,0.05013966]
[1753600348381,1.27571681,118360.0,118350.0,0.05013966]
[1753600349317,0.64496483,118360.0,118350.0,0.05013966]
[1753600349530,1.27571681,118360.0,118350.0,0.05013966]
[1753600352291,0.64496483,118360.0,118350.0,0.05013966]
[1753600352493,1.27571681,118360.0,118350.0,0.05013966]
[1753600352706,1.27571681,118360.0,118350.0,0.07494966]
[1753600354121,1.27571543,118360.0,118350.0,0.07494966]
[1753600354534,1.27571543,118360.0,118350.0,0.05013966]
[1753600355683,1.2598871,118360.0,118350.0,0.05013966]
[1753600356143,1.27571518,118360.0,118350.0,0.05013966]
[1753600356341,1.2598871,118360.0,118350.0,0.05013966]
[1753600356767,1.27571509,118360.0,118350.0,0.05013966]
[1753600361453,1.2598871,118360.0,118350.0,0.05013966]
[1753600361704,1.27571574,118360.0,118350.0,0.05013966]
[1753600362322,1.27571559,118360.0,118350.0,0.05013966]
[1753600362562,1.27571518,118360.0,118350.0,0.05013966]
[1753600363145,1.2598871,118360.0,118350.0,0.05013966]
[1753600363363,1.2598871,118360.0,118350.0,0.07494966]
[1753600363964,1.27571402,118360.0,118350.0,0.07358966]
[1753600365604,1.27571429,118360.0,118350.0,0.07358966]
[1753600369912,0.55464612,118350.0,118340.0,0.16406]
[1753600370153,1.1853981,118350.0,118340.0,0.16813255]
[1753600371199,1.1853981,118350.0,118340.0,0.16818101]
[1753600371441,1.1863981,118350.0,118340.0,0.16818101]
[1753600372003,1.1863981,118350.0,118340.0,0.19299101]
[1753600372202,1.1863981,118350.0,118340.0,0.19087846]
[1753600372404,0.55564612,118350.0,118340.0,0.19087846]
[1753600372602,1.1863981,118350.0,118340.0,0.19087846]
[1753600377747,1.5863981,118350.0,118340.0,0.19087846]
[1753600377944,1.6089681,118350.0,118340.0,0.19087846]
[1753600378351,1.6111181,118350.0,118340.0,0.19087846]
[1753600382795,1.6111181,118350.0,118340.0,0.17477846]
[1753600390804,1.6111181,118350.0,118340.0,0.17173846]
[1753600391021,1.6111181,118350.0,118340.0,0.17385101]
[1753600393913,1.6111181,118350.0,118340.0,0.17353742]
[1753600402011,1.6140681,118350.0,118340.0,0.14872742]
[1753600403280,0.98331612,118350.0,118340.0,0.14872742]
[1753600403694,1.6140681,118350.0,118340.0,0.14872742]
[1753600404469,1.6139836,118350.0,118340.0,0.14872742]
[1753600404691,0.98323162,118350.0,118340.0,0.14872742]
[1753600404888,1.6139836,118350.0,118340.0,0.14872742]
[1753600406119,0.98323162,118350.0,118340.0,0.14872742]
[1753600406341,1.6139836,118350.0,118340.0,0.14872742]
[1753600411041,1.6139836,118350.0,118340.0,0.13292742]
[1753600412704,0.98323162,118350.0,118340.0,0.13292742]
[1753600412914,1.6139836,118350.0,118340.0,0.13292742]
[1753600416810,1.6139836,118350.0,118340.0,0.13081487]
[1753600417051,1.6139836,118350.0,118340.0,0.13292742]
[1753600417476,1.6139836,118350.0,118340.0,0.13081487]
[1753600417919,1.6139836,118350.0,118340.0,0.13292742]
[1753600422689,0.98323162,118350.0,118340.0,0.13292742]
[1753600422906,1.6139836,118350.0,118340.0,0.13292742]
[1753600426656,0.98323162,118350.0,118340.0,0.13292742]
[1753600426864,1.6139836,118350.0,118340.0,0.13292742]
[1753600428672,1.6139836,118350.0,118340.0,0.13096742]
[1753600429890,1.6139836,118350.0,118340.0,0.12988742]
[1753600433919,0.98323162,118350.0,118340.0,0.12988742]
[1753600434119,1.6139836,118350.0,118340.0,0.12988742]
[1753600441324,1.6139836,118350.0,118340.0,0.12777487]
[1753600447849,0.98323162,118350.0,118340.0,0.12777487]
[1753600448068,1.6139836,118350.0,118340.0,0.12777487]
[1753600455961,0.98323162,118350.0,118340.0,0.12777487]
[1753600456183,1.6139836,118350.0,118340.0,0.12777487]
[1753600462584,0.98323162,118350.0,118340.0,0.12777487]
[1753600462820,1.6139836,118350.0,118340.0,0.12777487]
[1753600469183,0.98323162,118350.0,118340.0,0.12777487]
[1753600469389,1.6139836,118350.0,118340.0,0.12777487]
[1753600470628,1.6459836,118350.0,118340.0,0.12800846]
[1753600470836,1.72998883,118350.0,118340.0,0.12800846]
[1753600471255,1.6713686,118350.0,118340.0,0.12800846]
[1753600471679,1.2713686,118350.0,118340.0,0.12800846]
[1753600483617,1.2713686,118350.0,118300.0,0.0002]
[1753600483618,0.18595164,118310.0,118300.0,0.0002]
[1753600483849,1.01479592,118310.0,118300.0,0.12872]
[1753600484079,1.01479592,118310.0,118300.0,0.12876844]
[1753600484080,0.71523047,118310.0,118300.0,0.12876844]
[1753600484320,1.4053862,118310.0,118300.0,0.00024844]
[1753600484528,1.48195775,118310.0,118300.0,0.12880844]
[1753600484957,1.48985156,118310.0,118300.0,0.12880844]
[1753600485163,1.48985156,118310.0,118300.0,0.12884844]
[1753600485386,1.48195775,118310.0,118300.0,0.12884844]
[1753600485814,1.48195775,118310.0,118300.0,0.00024844]
[1753600486026,1.49037244,118310.0,118300.0,0.12884844]
[1753600486910,1.49337244,118310.0,118300.0,0.12884844]
[1753600488011,1.51888326,118310.0,118300.0,0.12884844]
[1753600488221,1.43440596,118310.0,118300.0,0.12884844]
[1753600489340,1.43440596,118310.0,118300.0,0.00024844]
[1753600489514,1.43440596,118310.0,118300.0,0.12884844]
[1753600491392,1.44226895,118310.0,118300.0,0.12884844]
[1753600492768,1.42645741,118310.0,118300.0,0.12884844]
[1753600492968,1.44218145,118310.0,118300.0,0.12884844]
[1753600493187,1.52665875,118310.0,118300.0,0.12884844]
[1753600493893,1.44218145,118310.0,118300.0,0.12796844]
[1753600495331,1.02108563,118300.0,118290.0,0.0004]
[1753600495608,1.02108563,118300.0,118280.0,1e-08]
[1753600495609,1.5997286,118290.0,118280.0,1e-08]
[1753600495815,1.70989945,118290.0,118280.0,4.848e-05]
[1753600496032,1.82191675,118290.0,118280.0,4.848e-05]
[1753600496261,1.82191675,118290.0,118280.0,1e-08]
[1753600496262,1.82781135,118290.0,118280.0,1e-08]
[1753600496487,0.62211565,118280.0,118270.0,0.0002]
[1753600496717,1.0783707,118280.0,118270.0,0.128963]
[1753600496972,1.4439976,118280.0,118270.0,0.128963]
[1753600497216,1.46939005,118280.0,118270.0,0.128963]
[1753600497656,1.38491275,118280.0,118270.0,0.000323]
[1753600497879,1.38491275,118280.0,118270.0,0.128963]
[1753600498099,1.38691275,118280.0,118270.0,0.128963]
[1753600498524,1.32120326,118280.0,118270.0,0.128963]
[1753600498741,1.33690094,118280.0,118270.0,0.128963]
[1753600499861,1.33790094,118280.0,118270.0,0.128963]
[1753600500070,0.77459352,118280.0,118270.0,0.128963]
[1753600500283,1.33689272,118280.0,118270.0,0.128963]
[1753600500496,1.33389272,118280.0,118270.0,0.153613]
[1753600500771,1.27195812,118280.0,118270.0,0.156823]
[1753600501024,1.26984812,118280.0,118270.0,0.156823]
[1753600501470,0.98869852,118280.0,118270.0,0.156823]
[1753600501691,1.26984812,118280.0,118270.0,0.156823]
[1753600502371,1.27573376,118280.0,118270.0,0.156823]
[1753600502609,1.31818376,118280.0,118270.0,0.156823]
[1753600502849,1.31818376,118280.0,118270.0,0.153613]
[1753600503520,1.31817294,118280.0,118270.0,0.153613]
[1753600504170,0.71342353,118280.0,118270.0,0.156823]
[1753600504396,0.98868699,118280.0,118270.0,0.156823]
[1753600505088,0.98868699,118280.0,118270.0,0.172223]
[1753600505540,0.99457405,118280.0,118270.0,0.172223]
[1753600505765,0.99357405,118280.0,118270.0,0.172223]
[1753600505998,0.99361405,118280.0,118270.0,0.172223]
[1753600506247,0.99161405,118280.0,118270.0,0.172223]
[1753600506692,0.99161635,118280.0,118270.0,0.172223]
[1753600507119,0.99161667,118280.0,118270.0,0.172223]
[1753600507340,0.90713937,118280.0,118270.0,0.172223]
[1753600507564,0.90714613,118280.0,118270.0,0.172223]
[1753600508884,0.62599653,118280.0,118270.0,0.172223]
[1753600509114,0.90714613,118280.0,118270.0,0.172223]
[1753600509327,0.90717107,118280.0,118270.0,0.172223]
[1753600509961,0.95193834,118280.0,118270.0,0.156823]
[1753600510196,0.95193834,118280.0,118270.0,0.1466692]
[1753600510422,1.23308794,118280.0,118270.0,0.1434592]
[1753600511927,0.95193834,118280.0,118270.0,0.1434592]
[1753600512366,0.95196169,118280.0,118270.0,0.1434592]
[1753600513435,0.97458192,118280.0,118270.0,0.1434592]
[1753600514377,0.97463733,118280.0,118270.0,0.1434592]
[1753600515336,0.97445586,118280.0,118270.0,0.14336866]
[1753600519530,0.69330626,118280.0,118270.0,0.14336866]
[1753600519753,0.97445586,118280.0,118270.0,0.14336866]
[1753600520294,0.97445586,118280.0,118270.0,0.1378686]
[1753600521008,0.97448654,118280.0,118270.0,0.1378686]
[1753600522953,0.97448879,118280.0,118270.0,0.1378686]
[1753600524069,0.99248879,118280.0,118270.0,0.1132186]
[1753600526103,1.07696609,118280.0,118270.0,0.1132186]
[1753600526304,0.99248879,118280.0,118270.0,0.1132186]
[1753600526725,1.27364455,118280.0,118270.0,0.1132186]
[1753600527155,1.3040506,118280.0,118270.0,0.1132186]
[1753600527368,1.2633131,118280.0,118270.0,0.1132186]
[1753600527583,1.30430486,118280.0,118270.0,0.1132186]
[1753600528419,0.74200566,118280.0,118270.0,0.1132186]
[1753600528639,1.30430486,118280.0,118270.0,0.1132186]
[1753600529347,1.25222179,118280.0,118270.0,0.1132186]
[1753600529607,1.24431392,118280.0,118270.0,0.1132186]
[1753600530074,1.27397196,118280.0,118270.0,0.1132186]
[1753600530352,1.25815434,118280.0,118270.0,0.1132186]
[1753600530558,1.25222273,118280.0,118270.0,0.1132186]
[1753600531458,1.27397201,118280.0,118270.0,0.1132186]
[1753600532398,1.27397143,118280.0,118270.0,0.1132186]
[1753600532843,1.27397143,118280.0,118270.0,0.1358586]
[1753600533498,1.27397118,118280.0,118270.0,0.1358586]
[1753600534356,1.27397025,118280.0,118270.0,0.1358586]
[1753600535010,1.27397025,118280.0,118270.0,0.1132186]
[1753600535468,1.25119705,118280.0,118270.0,0.1132186]
[1753600536271,1.26779705,118280.0,118270.0,0.1132186]
[1753600537233,1.26779623,118280.0,118270.0,0.1132186]
[1753600537685,1.25119623,118280.0,118270.0,0.1132186]
[1753600539111,1.23297767,118280.0,118270.0,0.1132186]
[1753600541766,1.24927767,118280.0,118270.0,0.1132186]
[1753600541997,1.33375497,118280.0,118270.0,0.1132186]
[1753600542561,1.23297767,118280.0,118270.0,0.1132186]
[1753600544430,1.23297694,118280.0,118270.0,0.1132186]
[1753600546045,1.2329761,118280.0,118270.0,0.1132186]
[1753600548927,1.21716128,118280.0,118270.0,0.1132186]
[1753600549131,1.2329766,118280.0,118270.0,0.1132186]
[1753600551083,0.951827,118280.0,118270.0,0.1132186]
[1753600551844,0.95182798,118280.0,118270.0,0.1132186]
[1753600552063,0.93601266,118280.0,118270.0,0.1132186]
[1753600552267,0.92101266,118280.0,118270.0,0.1358586]
[1753600552686,0.92101266,118280.0,118270.0,0.1379486]
[1753600553162,0.63986306,118280.0,118270.0,0.1379486]
[1753600553402,0.91801294,118280.0,118270.0,0.1379486]
[1753600555499,0.91208147,118280.0,118270.0,0.1379486]
[1753600555706,0.91208147,118280.0,118270.0,0.1409986]
[1753600555965,0.88754147,118280.0,118270.0,0.1566986]
[1753600556187,0.88754147,118280.0,118270.0,0.1727986]
[1753600556188,0.23892394,118280.0,118270.0,0.1727986]
[1753600556831,0.20180197,118280.0,118270.0,0.1727986]
[1753600557049,0.57892394,118280.0,118270.0,0.1727986]
[1753600557681,0.97892394,118280.0,118270.0,0.1727986]
[1753600559119,0.99216268,118280.0,118270.0,0.34190319]
[1753600560040,0.99216268,118280.0,118270.0,0.34118319]
[1753600560257,1.00061719,118280.0,118270.0,0.34118319]
[1753600560673,0.99216289,118280.0,118270.0,0.34118319]
[1753600561306,0.95504092,118280.0,118270.0,0.34118319]
[1753600561527,0.99216289,118280.0,118270.0,0.34118319]
[1753600561962,0.46252443,118280.0,118270.0,0.35809342]
[1753600562243,0.46252436,118280.0,118270.0,0.34963841]
[1753600562460,0.47097873,118280.0,118270.0,0.36654864]
[1753600562684,0.46252436,118280.0,118270.0,0.35809356]
[1753600562907,0.4709788,118280.0,118270.0,0.34118319]
[1753600563111,0.62316071,118280.0,118270.0,0.34118319]
[1753600563330,0.23161522,118280.0,118270.0,0.34118319]
[1753600567644,0.06252493,118280.0,118270.0,0.34963841]
[1753600570614,0.05407042,118280.0,118270.0,0.34963841]
[1753600570814,0.06252486,118280.0,118270.0,0.34963841]
[1753600571050,0.06252486,118280.0,118270.0,0.35809356]
[1753600571254,0.06252486,118280.0,118270.0,0.34963841]
[1753600571465,0.07097937,118280.0,118270.0,0.34963841]
[1753600572288,0.06252486,118280.0,118270.0,0.35809356]
[1753600572918,0.06252486,118280.0,118270.0,0.34963841]
[1753600573129,0.06252486,118280.0,118270.0,0.35809356]
[1753600573775,0.06252486,118280.0,118270.0,0.34963841]
[1753600573991,0.05407042,118280.0,118270.0,0.35809349]
[1753600574199,0.05407042,118280.0,118270.0,0.3665485]
[1753600574629,0.05407042,118280.0,118270.0,0.24559489]
[1753600574869,0.05407006,118280.0,118270.0,0.37371489]
[1753600575091,0.05406999,118280.0,118270.0,0.70661642]
[1753600575289,0.05406999,118280.0,118270.0,0.69816162]
[1753600575543,0.05406999,118280.0,118270.0,0.78263892]
[1753600575949,0.06252414,118280.0,118270.0,0.78263892]
[1753600576169,0.07097836,118280.0,118270.0,0.79109386]
[1753600576393,0.05406999,118280.0,118270.0,0.79954866]
[1753600576612,0.05406999,118280.0,118270.0,0.79109386]
[1753600577039,0.06252421,118280.0,118270.0,0.79109386]
[1753600577548,0.05406999,118280.0,118270.0,0.79109386]
[1753600577779,0.06252421,118280.0,118270.0,0.79109386]
[1753600579565,0.05406999,118280.0,118270.0,0.79954866]
[1753600581233,0.05406999,118280.0,118270.0,0.79954816]
[1753600581471,0.05406999,118280.0,118270.0,0.79109344]
[1753600582760,0.05406999,118280.0,118270.0,0.80154816]
[1753600583015,0.05406999,118280.0,118270.0,0.79309344]
[1753600583420,0.05406999,118280.0,118270.0,0.79409344]
[1753600583625,0.05406999,118280.0,118270.0,0.78563864]
[1753600583828,0.06252421,118280.0,118270.0,0.78563864]
[1753600584436,0.05406999,118280.0,118270.0,0.78563864]
[1753600585381,0.05406999,118280.0,118270.0,0.79409344]
[1753600587306,0.04561591,118280.0,118270.0,0.79409344]
[1753600587547,0.05406992,118280.0,118270.0,0.78563857]
[1753600587787,0.05406992,118280.0,118270.0,0.79409329]
[1753600588017,0.05406992,118280.0,118270.0,0.78563857]
[1753600588872,0.05406992,118280.0,118270.0,0.78563864]
[1753600589081,0.05406992,118280.0,118270.0,0.79409344]
[1753600589505,0.05406985,118280.0,118270.0,0.80254816]
[1753600589740,0.05406985,118280.0,118270.0,0.79409344]
[1753600589955,0.062524,118280.0,118270.0,0.79409344]
[1753600590597,0.05406985,118280.0,118270.0,0.79409344]
[1753600590954,0.05406985,118280.0,118270.0,0.80254816]
[1753600591157,0.05406985,118280.0,118270.0,0.79409344]
[1753600591773,0.06252393,118280.0,118270.0,0.78563864]
[1753600591979,0.06252393,118280.0,118270.0,0.79409344]
[1753600592853,0.06252393,118280.0,118270.0,0.78563864]
[1753600593054,0.06252393,118280.0,118270.0,0.79409344]
[1753600593480,0.06252393,118280.0,118270.0,0.80254816]
[1753600593675,0.06252393,118280.0,118270.0,0.79409344]
[1753600593883,0.07097815,118280.0,118270.0,0.76872883]
[1753600594506,0.07943252,118280.0,118270.0,0.77718384]
[1753600594967,0.07943252,118280.0,118270.0,0.76872883]
[1753600595377,0.07943316,118280.0,118270.0,0.7687289]
[1753600595598,0.07097865,118280.0,118270.0,0.76027375]
[1753600595804,0.07943316,118280.0,118270.0,0.76872897]
[1753600596232,0.07943316,118280.0,118270.0,0.45273711]
[1753600596460,0.07943316,118280.0,118270.0,0.76872897]
[1753600596681,0.07943316,118280.0,118270.0,0.42818189]
[1753600596890,0.07943316,118280.0,118270.0,0.43663711]
[1753600597079,0.10614316,118280.0,118270.0,0.75262897]
[1753600597284,0.07310865,118280.0,118270.0,0.76108412]
[1753600597508,0.07310865,118280.0,118270.0,0.42818189]
[1753600597773,0.09768865,118280.0,118270.0,0.42818189]
[1753600597999,0.09768865,118280.0,118270.0,0.43663711]
[1753600598233,0.10614316,118280.0,118270.0,0.43663711]
[1753600598431,0.10614316,118280.0,118270.0,0.42818189]
[1753600598680,0.10614316,118280.0,118270.0,0.43663711]
[1753600598894,0.10614316,118280.0,118270.0,0.42818189]
[1753600599337,0.10614316,118280.0,118270.0,0.43663711]
[1753600600613,0.10614316,118280.0,118270.0,0.44509226]
[1753600600827,0.09768865,118280.0,118270.0,0.44509226]
[1753600601189,0.09768865,118280.0,118270.0,0.45354734]
[1753600601402,0.09768865,118280.0,118270.0,0.46200235]
[1753600601609,0.10614309,118280.0,118270.0,0.44509226]
[1753600601769,0.08156309,118280.0,118270.0,0.44509226]
[1753600602283,0.08156309,118280.0,118270.0,0.76108412]
[1753600602476,0.08156309,118280.0,118270.0,0.44509226]
[1753600602837,0.08156309,118280.0,118270.0,0.64813226]
[1753600603040,0.08156309,118280.0,118270.0,0.63967711]
[1753600603416,0.07310908,118280.0,118270.0,0.63967711]
[1753600603618,0.07310908,118280.0,118270.0,0.64813226]
[1753600604460,0.07310908,118280.0,118270.0,0.63122189]
[1753600604863,0.07310908,118280.0,118270.0,0.63967711]
[1753600606124,0.08156359,118280.0,118270.0,0.63967711]
[1753600606608,0.08156359,118280.0,118270.0,0.64813226]
[1753600606850,0.07310908,118280.0,118270.0,0.64813226]
[1753600607077,0.07310908,118280.0,118270.0,0.63967711]
[1753600607312,0.07310908,118280.0,118270.0,0.64813226]
[1753600607581,0.07310908,118280.0,118270.0,0.96412412]
[1753600607823,0.07310908,118280.0,118270.0,0.95566897]
[1753600608486,0.07310908,118280.0,118270.0,0.96412412]
[1753600608725,0.07310908,118280.0,118270.0,0.95566897]
[1753600608968,0.07310908,118280.0,118270.0,0.96412412]
[1753600609459,0.08156359,118280.0,118270.0,0.95566897]
[1753600609932,0.07310908,118280.0,118270.0,0.9725792]
[1753600610172,0.07310908,118280.0,118270.0,0.96412412]
[1753600612318,0.07310908,118280.0,118270.0,0.95566897]
[1753600612557,0.07310908,118280.0,118270.0,0.96412412]
[1753600612794,0.07310908,118280.0,118270.0,0.95566897]
[1753600613482,0.07310908,118280.0,118270.0,0.96412412]
[1753600613961,0.07310908,118280.0,118270.0,0.95566897]
[1753600614460,0.24219937,118280.0,118270.0,0.94721375]
[1753600615344,0.24219937,118280.0,118270.0,0.95566897]
[1753600615580,0.08156359,118280.0,118270.0,0.95566897]
[1753600616535,0.08156359,118280.0,118270.0,0.96412412]
[1753600617810,0.08156359,118280.0,118270.0,0.95566897]
[1753600618847,0.07943359,118280.0,118270.0,0.95566897]
[1753600619239,0.07943359,118280.0,118270.0,0.63967711]
[1753600620194,0.07943359,118280.0,118270.0,0.62397711]
[1753600620398,0.07097908,118280.0,118270.0,0.62397711]
[1753600620802,0.07943359,118280.0,118270.0,0.63243226]
[1753600621011,0.24852388,118280.0,118270.0,0.61552189]
[1753600621226,0.2400698,118280.0,118270.0,0.62397711]
[1753600621433,0.2400698,118280.0,118270.0,0.61552189]
[1753600622884,0.23161558,118280.0,118270.0,0.61552189]
[1753600623343,0.23161558,118280.0,118270.0,0.62397711]
[1753600623548,0.23161558,118280.0,118270.0,0.61552189]
[1753600625765,0.23161558,118280.0,118270.0,0.62341711]
[1753600625972,0.23161558,118280.0,118270.0,0.61496189]
[1753600627379,0.25572558,118280.0,118270.0,0.61496189]
[1753600627608,0.23161558,118280.0,118270.0,0.61496189]
[1753600630167,0.23161558,118280.0,118270.0,0.62341711]
[1753600630610,0.23161558,118280.0,118270.0,0.61496189]
[1753600631285,0.23161558,118280.0,118270.0,0.62341711]
[1753600631829,0.23161558,118280.0,118270.0,0.61496189]
[1753600633926,0.23161558,118280.0,118270.0,0.62341711]
[1753600634199,0.23161558,118280.0,118270.0,0.41192189]
[1753600635852,0.23161558,118280.0,118270.0,0.42037711]
[1753600636345,0.23161558,118280.0,118270.0,0.41192189]
[1753600638896,0.06252529,118280.0,118270.0,0.41192189]
[1753600639304,0.06252529,118280.0,118270.0,0.42037711]
[1753600640097,0.06252529,118280.0,118270.0,0.41192189]
[1753600641287,0.06252529,118280.0,118270.0,0.42037711]
[1753600641647,0.06252529,118280.0,118270.0,0.41192189]
[1753600642198,0.06252529,118280.0,118270.0,0.42037711]
[1753600642438,0.06252529,118280.0,118270.0,0.41192189]
[1753600643236,0.06252529,118280.0,118270.0,0.42037711]
[1753600644504,0.06252529,118280.0,118270.0,0.41192189]
[1753600646445,0.23161558,118280.0,118270.0,0.41192189]
[1753600649950,0.22316121,118280.0,118270.0,0.41192189]
[1753600650168,0.24650121,118280.0,118270.0,0.41192189]
[1753600650571,0.26463121,118280.0,118270.0,0.41192189]
[1753600652194,0.58062307,118280.0,118270.0,0.41192189]
[1753600652845,0.26463121,118280.0,118270.0,0.41192189]
[1753600654053,0.58062307,118280.0,118270.0,0.41192189]
[1753600654261,0.26463121,118280.0,118270.0,0.41192189]
[1753600654584,0.58062307,118280.0,118270.0,0.41192189]
[1753600654747,0.26463121,118280.0,118270.0,0.41192189]
[1753600654990,0.41153278,118280.0,118270.0,0.42037711]
[1753600655770,0.09554092,118280.0,118270.0,0.42037711]
[1753600656570,0.09554092,118280.0,118270.0,0.41192189]
[1753600657126,0.41153278,118280.0,118270.0,0.41192189]
[1753600658436,0.41153278,118280.0,118270.0,0.42037711]
[1753600659069,0.41153278,118280.0,118270.0,0.41192189]
[1753600659732,0.41153278,118280.0,118270.0,0.42037711]
[1753600660188,0.41153278,118280.0,118270.0,0.41192189]
[1753600660612,0.41153278,118280.0,118270.0,0.42037711]
[1753600660789,0.09554092,118280.0,118270.0,0.41192189]
[1753600661472,0.09554092,118280.0,118270.0,0.42037711]
[1753600661968,0.09554092,118280.0,118270.0,0.42883226]
[1753600662226,0.05620092,118280.0,118270.0,0.42037711]
[1753600662473,0.37219278,118280.0,118270.0,0.42883226]
[1753600663149,0.05620092,118280.0,118270.0,0.42883226]
[1753600663585,0.05620063,118280.0,118270.0,0.42883226]
[1753600663808,0.05407063,118280.0,118270.0,0.42883226]
[1753600664045,0.05407063,118280.0,118270.0,0.42037711]
[1753600664464,0.05407063,118280.0,118270.0,0.42883226]
[1753600665106,0.05407063,118280.0,118270.0,0.42037711]
[1753600665520,0.05407063,118280.0,118270.0,0.42883226]
[1753600667135,0.06252464,118280.0,118270.0,0.43728734]
[1753600667335,0.0540702,118280.0,118270.0,0.42883226]
[1753600667580,0.06252464,118280.0,118270.0,0.42883226]
[1753600668376,0.07097915,118280.0,118270.0,0.42037711]
[1753600668813,0.07097915,118280.0,118270.0,0.42883226]
[1753600669053,0.06252464,118280.0,118270.0,0.43728734]
[1753600669629,0.06252464,118280.0,118270.0,0.42883226]
[1753600672463,0.06252464,118280.0,118270.0,0.43728734]
[1753600673067,0.06252464,118280.0,118270.0,0.42883226]
[1753600673900,0.06252464,118280.0,118270.0,0.43728734]
[1753600674829,0.06252464,118280.0,118270.0,0.42883226]
[1753600675457,0.06252464,118280.0,118270.0,0.43728734]
[1753600675658,0.06252464,118280.0,118270.0,0.42883226]
[1753600676139,0.06252464,118280.0,118270.0,0.42037711]
[1753600676449,0.07097915,118280.0,118270.0,0.42037711]
[1753600676890,0.06252464,118280.0,118270.0,0.42037711]
[1753600677096,0.06252464,118280.0,118270.0,0.42883219]
[1753600677498,0.06252457,118280.0,118270.0,0.42883219]
[1753600678485,0.37851643,118280.0,118270.0,0.42883219]
[1753600678895,0.03716197,118280.0,118270.0,0.74482405]
[1753600679130,0.03716197,118280.0,118270.0,0.79283371]
[1753600679570,4e-05,118280.0,118270.0,0.79283371]
[1753600681028,4e-05,118280.0,118270.0,0.79083371]
[1753600681466,4e-05,118280.0,118270.0,0.79383371]
[1753600683273,4e-05,118280.0,118270.0,1.13383371]
[1753600684366,4e-05,118280.0,118270.0,1.13283371]
[1753600684822,4e-05,118280.0,118270.0,1.13483371]
[1753600687119,4e-05,118280.0,118270.0,0.81884185]
[1753600687365,4e-05,118280.0,118270.0,1.13483371]
[1753600691909,4e-05,118280.0,118270.0,1.13439371]
[1753600696915,4e-05,118280.0,118270.0,0.81840185]
[1753600697138,4e-05,118280.0,118270.0,1.13439371]
[1753600704429,0.03690832,118290.0,118280.0,0.19445296]
[1753600704680,0.04536147,118290.0,118280.0,0.40904026]
[1753600704884,0.05381469,118290.0,118280.0,0.43498026]
[1753600705238,0.07162147,118290.0,118280.0,0.43498026]
[1753600706102,0.07162147,118290.0,118280.0,0.43698026]
[1753600706307,0.07162147,118290.0,118280.0,0.43898026]
[1753600706732,0.07162147,118290.0,118280.0,0.64202026]
[1753600707265,0.06316832,118290.0,118280.0,0.64202026]
[1753600707723,0.35290018,118290.0,118280.0,0.64202026]
[1753600708407,0.03690832,118290.0,118280.0,0.64202026]
[1753600708595,0.35290018,118290.0,118280.0,0.64202026]
[1753600708830,0.42092049,118290.0,118280.0,0.61397041]
[1753600709064,0.41548691,118290.0,118280.0,0.62242442]
[1753600710220,0.42394042,118290.0,118280.0,0.61397041]
[1753600710421,0.42394042,118290.0,118280.0,0.62242442]
[1753600710625,0.41548691,118290.0,118280.0,0.62242442]
[1753600712227,0.41548691,118290.0,118280.0,0.61397041]
[1753600712228,0.42394042,118290.0,118280.0,0.61397041]
[1753600712461,0.41548691,118290.0,118280.0,0.62242442]
[1753600713443,0.41548691,118290.0,118280.0,0.61397041]
[1753600714281,0.41548691,118290.0,118280.0,0.60551633]
[1753600714489,0.41548691,118290.0,118280.0,0.62242449]
[1753600714695,0.09949505,118290.0,118280.0,0.62242449]
[1753600714897,0.41548691,118290.0,118280.0,0.62242449]
[1753600715964,0.41548691,118290.0,118280.0,0.61397048]
[1753600716176,0.41548691,118290.0,118280.0,0.62242456]
[1753600716437,0.41548691,118290.0,118280.0,0.63087857]
[1753600716892,0.41548691,118290.0,118280.0,0.65377857]
[1753600719253,0.41548691,118290.0,118280.0,0.64532456]
[1753600719551,0.42394049,118290.0,118280.0,0.64532456]
[1753600719706,0.41548691,118290.0,118280.0,0.65377857]
[1753600719916,0.41548691,118290.0,118280.0,0.64532456]
[1753600720539,0.42394049,118290.0,118280.0,0.64532456]
[1753600720792,0.41548691,118290.0,118280.0,0.64532456]
[1753600721104,0.42394042,118290.0,118280.0,0.64532456]
[1753600721240,0.42394042,118290.0,118280.0,0.65377857]
[1753600721458,0.41548691,118290.0,118280.0,0.64532456]
[1753600721661,0.41548691,118290.0,118280.0,0.65377857]
[1753600721861,0.42394042,118290.0,118280.0,0.64532456]
[1753600722062,0.42394042,118290.0,118280.0,0.65377857]
[1753600722303,0.42394042,118290.0,118280.0,0.64532456]
[1753600723176,0.41548691,118290.0,118280.0,0.64743456]
[1753600723421,0.41548691,118290.0,118280.0,0.65588857]
[1753600723620,0.41246684,118290.0,118280.0,0.65588857]
[1753600723783,0.41246684,118290.0,118280.0,0.65892857]
[1753600724191,0.42092035,118290.0,118280.0,0.65047456]
[1753600724396,0.41246684,118290.0,118280.0,0.65892857]
[1753600724865,0.42092035,118290.0,118280.0,0.65892857]
[1753600725058,0.10492849,118290.0,118280.0,0.65892857]